fUST/lending_fUST_20250605
["ID","MTS","AMOUNT","RATE_DAILY","PERIOD"]
[364549483,1749137444423,-151.0,0.00019452,2]
[364549485,1749137444433,-151.0,0.00019452,2]
[364549486,1749137444442,-500.0,0.00019452,2]
[364549487,1749137444451,-500.0,0.00019452,2]
[364549488,1749137444461,-201.36615727,0.00019452,2]
[364549489,1749137444471,-151.0,0.00019452,2]
[364549491,1749137444480,-519.70768548,0.00019452,2]
[364549492,1749137444489,-440.0,0.00019452,2]
[364549493,1749137444498,-440.0,0.00019452,2]
[364549494,1749137444507,-440.0,0.00019452,2]
[364549495,1749137444516,-440.0,0.00019452,2]
[364549496,1749137444525,-525.64,0.00019452,2]
[364549497,1749137444535,-1235.06,0.00019452,2]
[364549498,1749137444544,-734.11,0.00019452,2]
[364549499,1749137444554,-440.0,0.00019452,2]
[364549500,1749137444563,-228.8,0.00019452,2]
[364549501,1749137444572,-440.0,0.00019452,2]
[364549502,1749137444581,-507.73,0.00019452,2]
[364549503,1749137444590,-432.44,0.00019452,2]
[364549504,1749137444600,-154.09231252,0.00019452,2]
[364549505,1749137444610,-440.0,0.00019452,2]
[364549506,1749137444619,-440.0,0.00019452,2]
[364549507,1749137444629,-564.03042737,0.00019452,2]
[364549508,1749137444638,-525.88,0.00019452,2]
[364549509,1749137444647,-440.0,0.00019452,2]
[364549510,1749137444656,-26872.51,0.00019452,2]
[364549511,1749137444665,-440.0,0.00019452,2]
[364549512,1749137444674,-472.16,0.00019452,2]
[364549513,1749137444684,-440.0,0.00019452,2]
[364549514,1749137444693,-440.0,0.00019452,2]
[364549515,1749137444702,-440.0,0.00019452,2]
[364549516,1749137444712,-440.0,0.00019452,2]
[364549517,1749137444721,-440.0,0.00019452,2]
[364549518,1749137444730,-440.0,0.00019452,2]
[364549519,1749137444739,-240.14,0.00019452,2]
[364549520,1749137444748,-495.79,0.00019452,2]
[364549521,1749137444757,-440.0,0.00019452,2]
[364549522,1749137444769,-440.0,0.00019452,2]
[364549523,1749137444782,-151.0,0.00019479,2]
[364549524,1749137444791,-158.6675179,0.00019479,2]
[364549525,1749137444801,-500.0,0.00019479,2]
[364549526,1749137444810,-500.0,0.00019479,2]
[364549527,1749137444819,-151.0,0.00019479,2]
[364549528,1749137444828,-207.48916409,0.00019507,2]
[364549529,1749137444838,-500.0,0.00019507,2]
[364549530,1749137444847,-500.0,0.00019507,2]
[364549531,1749137444857,-151.0,0.00019507,2]
[364549532,1749137444866,-302.4543907,0.00019521,2]
[364549533,1749137444876,-500.0,0.00019534,2]
[364549534,1749137444885,-500.0,0.00019534,2]
[364549535,1749137444894,-245.0,0.00019534,2]
[364549536,1749137444904,-500.0,0.00019561,2]
[364549537,1749137444914,-500.0,0.00019561,2]
[364549538,1749137444924,-500.0,0.00019589,2]
[364549539,1749137444933,-500.0,0.00019589,2]
[364549540,1749137444943,-277.75440353,0.00019616,2]
[364549541,1749137444953,-500.0,0.00019616,2]
[364549542,1749137444962,-946.42,0.00019641,2]
[364549543,1749137444972,-500.0,0.00019644,2]
[364549544,1749137444982,-500.0,0.00019671,2]
[364549545,1749137444992,-500.0,0.00019698,2]
[364549546,1749137445002,-500.0,0.00019726,2]
[364549547,1749137445012,-440.0,0.00019726,2]
[364549548,1749137445021,-440.0,0.00019726,2]
[364549549,1749137445031,-440.0,0.00019726,2]
[364549550,1749137445040,-440.0,0.00019726,2]
[364549551,1749137445050,-525.64,0.00019726,2]
[364549552,1749137445059,-1235.06,0.00019726,2]
[364549553,1749137445069,-734.11,0.00019726,2]
[364549554,1749137445079,-440.0,0.00019726,2]
[364549555,1749137445088,-440.0,0.00019726,2]
[364549556,1749137445099,-440.0,0.00019726,2]
[364549557,1749137445110,-167.26,0.00019726,2]
[364549558,1749137445119,-525.88,0.00019726,2]
[364549559,1749137445130,-440.0,0.00019726,2]
[364549560,1749137445140,-26872.51,0.00019726,2]
[364549561,1749137445150,-440.0,0.00019726,2]
[364549562,1749137445160,-472.16,0.00019726,2]
[364549563,1749137445169,-440.0,0.00019726,2]
[364549564,1749137445180,-440.0,0.00019726,2]
[364549565,1749137445190,-440.0,0.00019726,2]
[364549566,1749137445200,-440.0,0.00019726,2]
[364549567,1749137445209,-440.0,0.00019726,2]
[364549568,1749137445219,-440.0,0.00019726,2]
[364549569,1749137445230,-440.0,0.00019726,2]
[364549570,1749137445239,-223.05,0.00019726,2]
[364549571,1749137445249,-302.4543907,0.00019728,2]
[364549572,1749137445258,-500.0,0.00019753,2]
[364549573,1749137445268,-970.42035179,0.00019818,2]
[364549574,1749137445278,-411.227,0.00019874,2]
[364549575,1749137445287,-160.0,0.00019917,2]
[364549576,1749137445296,-160.0,0.00019917,2]
[364549578,1749137445306,-229.48950782,0.00019917,2]
[364549579,1749137445315,-842.5625,0.00019917,2]
[364549581,1749137445325,-423.7637613,0.00019917,2]
[364549582,1749137445334,-160.0,0.00019917,2]
[364549583,1749137445442,-302.4543907,0.00019934,2]
[364549584,1749137445452,-440.0,0.0002,2]
[364549585,1749137445461,-440.0,0.0002,2]
[364549586,1749137445470,-207.1926165,0.0002,7]
[364549587,1749137445480,-440.0,0.0002,2]
[364549588,1749137445490,-440.0,0.0002,2]
[364549589,1749137445499,-525.64,0.0002,2]
[364549590,1749137445508,-1235.06,0.0002,2]
[364549591,1749137445518,-734.11,0.0002,2]
[364549592,1749137445528,-440.0,0.0002,2]
[364549593,1749137445537,-440.0,0.0002,2]
[364549594,1749137445546,-440.0,0.0002,2]
[364549595,1749137445556,-525.88,0.0002,2]
[364549596,1749137445565,-440.0,0.0002,2]
[364549597,1749137445575,-26872.51,0.0002,2]
[364549598,1749137445585,-473.46,0.0002,2]
[364549599,1749137445594,-472.16,0.0002,2]
[364549600,1749137445604,-440.0,0.0002,2]
[364549601,1749137445613,-440.0,0.0002,2]
[364549602,1749137445623,-440.0,0.0002,2]
[364549603,1749137445632,-371.87,0.0002,2]
[364549604,1749137445642,-440.0,0.0002,2]
[364549605,1749137445651,-440.0,0.0002,2]
[364549606,1749137445661,-440.0,0.0002,2]
[364549607,1749137445671,-463.70835241,0.00020033,2]
[364549608,1749137445680,-302.4543907,0.00020141,2]
[364549609,1749137445690,-174.104963,0.00020187,2]
[364549610,1749137445699,-152.34019881,0.00020191,2]
[364549611,1749137445708,-167.8728,0.00020273,2]
[364549612,1749137445718,-440.0,0.00020273,2]
[364549613,1749137445727,-400.0,0.00020273,2]
[364549614,1749137445737,-440.0,0.00020273,2]
[364549615,1749137445746,-525.64,0.00020273,2]
[364549616,1749137445755,-1235.06,0.00020273,2]
[364549617,1749137445765,-734.11,0.00020273,2]
[364549618,1749137445774,-440.0,0.00020273,2]
[364549619,1749137445784,-440.0,0.00020273,2]
[364549620,1749137445794,-440.0,0.00020273,2]
[364549621,1749137445803,-525.88,0.00020273,2]
[364549622,1749137445813,-440.0,0.00020273,2]
[364549623,1749137445822,-26872.51,0.00020273,2]
[364549624,1749137445832,-472.16,0.00020273,2]
[364549625,1749137445842,-440.0,0.00020273,2]
[364549626,1749137445852,-440.0,0.00020273,2]
[364549627,1749137445861,-440.0,0.00020273,2]
[364549628,1749137445871,-440.0,0.00020273,2]
[364549629,1749137445881,-440.0,0.00020273,2]
[364549630,1749137445890,-440.0,0.00020273,2]
[364549631,1749137445899,-302.4543907,0.00020348,3]
[364549633,1749137445909,-500.0,0.00020488,2]
[364549634,1749137445919,-500.0,0.00020546,2]
[364549635,1749137445928,-500.0,0.00020546,2]
[364549636,1749137445938,-515.78172546,0.00020546,2]
[364549637,1749137445948,-500.0,0.00020546,2]
[364549638,1749137445957,-289.07947552,0.00020546,2]
[364549639,1749137445967,-500.0,0.00020546,2]
[364549640,1749137445978,-500.0,0.00020546,2]
[364549641,1749137445988,-500.0,0.00020546,2]
[364549642,1749137445999,-500.0,0.00020546,2]
[364549643,1749137446009,-205.049756,0.00020546,2]
[364549644,1749137446020,-500.0,0.00020546,2]
[364549645,1749137446029,-597.3109701,0.00020546,2]
[364549646,1749137446039,-500.0,0.00020546,2]
[364549647,1749137446048,-500.0,0.00020546,2]
[364549648,1749137446059,-500.0,0.00020546,2]
[364549649,1749137446069,-500.0,0.00020546,2]
[364549650,1749137446079,-500.0,0.00020546,2]
[364549651,1749137446088,-500.0,0.00020546,2]
[364549652,1749137446101,-500.0,0.00020546,2]
[364549653,1749137446112,-500.0,0.00020546,2]
[364549654,1749137446121,-500.0,0.00020546,2]
[364549655,1749137446131,-157.13607268,0.00020546,2]
[364549656,1749137446140,-500.0,0.00020546,2]
[364549657,1749137446151,-500.0,0.00020546,2]
[364549658,1749137446161,-500.0,0.00020546,2]
[364549659,1749137446171,-500.0,0.00020546,2]
[364549660,1749137446183,-500.0,0.00020546,2]
[364549661,1749137446193,-500.0,0.00020546,2]
[364549662,1749137446203,-500.0,0.00020546,2]
[364549663,1749137446212,-500.0,0.00020546,2]
[364549664,1749137446222,-500.0,0.00020546,2]
[364549665,1749137446232,-500.0,0.00020546,2]
[364549666,1749137446242,-500.0,0.00020546,2]
[364549667,1749137446251,-500.0,0.00020546,2]
[364549668,1749137446261,-500.0,0.00020546,2]
[364549669,1749137446271,-500.0,0.00020546,2]
[364549670,1749137446280,-205.04228299,0.00020546,2]
[364549671,1749137446290,-500.0,0.00020546,2]
[364549672,1749137446299,-277.05099684,0.00020546,2]
[364549673,1749137446309,-500.0,0.00020546,2]
[364549674,1749137446318,-500.0,0.00020546,2]
[364549675,1749137446328,-430.0,0.00020547,2]
[364549676,1749137446337,-440.0,0.00020547,2]
[364549677,1749137446347,-500.0,0.00020547,2]
[364549678,1749137446356,-440.0,0.00020547,2]
[364549679,1749137446365,-525.64,0.00020547,2]
[364549680,1749137446374,-1235.06,0.00020547,2]
[364549681,1749137446383,-734.11,0.00020547,2]
[364549682,1749137446392,-440.0,0.00020547,2]
[364549683,1749137446402,-173.35,0.00020547,2]
[364549684,1749137446411,-440.0,0.00020547,2]
[364549685,1749137446420,-525.88,0.00020547,2]
[364549686,1749137446430,-350.33991544,0.00020547,2]
[364549687,1749137446439,-26872.51,0.00020547,2]
[364549688,1749137446448,-472.16,0.00020547,2]
[364549689,1749137446458,-440.0,0.00020547,2]
[364549690,1749137446467,-440.0,0.00020547,2]
[364549691,1749137446477,-440.0,0.00020547,2]
[364549692,1749137446486,-288.50188383,0.00020547,2]
[364549693,1749137446495,-451.98,0.00020547,2]
[364549694,1749137446505,-440.0,0.00020547,2]
[364549695,1749137446515,-302.4543907,0.00020555,3]
[364549696,1749137446525,-969.37,0.000206,2]
[364549697,1749137446535,-1848.25,0.000206,2]
[364549698,1749137446544,-302.4543907,0.00020762,3]
[364549699,1749137446553,-440.0,0.00020821,2]
[364549700,1749137446562,-440.0,0.00020821,2]
[364549701,1749137446571,-525.64,0.00020821,2]
[364549702,1749137446581,-1235.06,0.00020821,2]
[364549703,1749137446591,-734.11,0.00020821,2]
[364549704,1749137446600,-520.82246041,0.00020821,2]
[364549705,1749137446610,-440.0,0.00020821,2]
[364549706,1749137446619,-525.88,0.00020821,2]
[364549707,1749137446629,-26872.51,0.00020821,2]
[364549708,1749137446639,-472.16,0.00020821,2]
[364549709,1749137446648,-440.0,0.00020821,2]
[364549710,1749137446657,-440.0,0.00020821,2]
[364549711,1749137446666,-440.0,0.00020821,2]
[364549712,1749137446675,-453.47,0.00020821,2]
[364549713,1749137446686,-302.4543907,0.00020969,4]
[364549714,1749137446695,-440.0,0.00021095,2]
[364549715,1749137446705,-440.0,0.00021095,2]
[364549716,1749137446714,-525.64,0.00021095,2]
[364549717,1749137446724,-1235.06,0.00021095,2]
[364549718,1749137446733,-734.11,0.00021095,2]
[364549719,1749137446743,-440.0,0.00021095,2]
[364549720,1749137446752,-525.88,0.00021095,2]
[364549721,1749137446762,-26872.51,0.00021095,2]
[364549722,1749137446772,-472.16,0.00021095,2]
[364549723,1749137446781,-304.63,0.00021095,2]
[364549724,1749137446791,-173.240579,0.00021095,2]
[364549725,1749137446800,-440.0,0.00021095,2]
[364549726,1749137446809,-1261.89,0.00021152,2]
[364549727,1749137446819,-205.68268155,0.00021156,2]
[364549728,1749137446828,-302.4543907,0.00021176,4]
[364549729,1749137446838,-267.32,0.00021369,2]
[364549730,1749137446847,-525.64,0.00021369,2]
[364549731,1749137446857,-1235.06,0.00021369,2]
[364549732,1749137446866,-734.11,0.00021369,2]
[364549733,1749137446876,-440.0,0.00021369,2]
[364549734,1749137446885,-525.88,0.00021369,2]
[364549735,1749137446896,-26872.51,0.00021369,2]
[364549736,1749137446906,-472.16,0.00021369,2]
[364549737,1749137446915,-440.0,0.00021369,2]
[364549738,1749137446925,-302.4543907,0.00021383,5]
[364549739,1749137446934,-207.4,0.00021578,2]
[364549740,1749137446944,-302.4543907,0.0002159,5]
[364549741,1749137446953,-525.64,0.00021643,2]
[364549742,1749137446963,-1235.06,0.00021643,2]
[364549743,1749137446973,-734.11,0.00021643,2]
[364549744,1749137446983,-172.73,0.00021643,2]
[364549745,1749137446992,-525.88,0.00021643,2]
[364549746,1749137447002,-9787.14073418,0.00021643,2]
[364549747,1749137447054,-17085.36926582,0.00021643,2]
[364549748,1749137447064,-472.16,0.00021643,2]
[364549749,1749137447074,-440.0,0.00021643,2]
[364549750,1749137447084,-13790.52665311,0.000217,2]
[364549751,1749137447096,-6840.59056501,0.000217,2]
[364549752,1749137447112,-2706.55278188,0.000217,2]
[364549753,1749137447122,-302.4543907,0.00021797,6]
[364549754,1749137447132,-1000.0,0.000218,2]
[364549755,1749137447142,-1000.0,0.000218,4]
[364549756,1749137447151,-152.34019881,0.00021852,2]
[364549757,1749137447161,-525.64,0.00021917,2]
[364549758,1749137447170,-1235.06,0.00021917,2]
[364549759,1749137447181,-734.11,0.00021917,2]
[364549760,1749137447192,-525.88,0.00021917,2]
[364549761,1749137447202,-26872.51,0.00021917,2]
[364549762,1749137447212,-472.16,0.00021917,2]
[364549763,1749137447221,-440.0,0.00021917,2]
[364549764,1749137447231,-2362.79,0.00022,2]
[364549765,1749137447240,-302.4543907,0.00022003,6]
[364549766,1749137447250,-525.64,0.00022191,2]
[364549767,1749137447259,-1235.06,0.00022191,2]
[364549768,1749137447269,-734.11,0.00022191,2]
[364549769,1749137447279,-525.88,0.00022191,2]
[364549770,1749137447289,-26872.51,0.00022191,2]
[364549771,1749137447298,-472.16,0.00022191,2]
[364549772,1749137447307,-440.0,0.00022191,2]
[364549773,1749137447317,-1848.25,0.000222,7]
[364549774,1749137447326,-302.4543907,0.0002221,6]
[364549775,1749137447336,-302.4543907,0.00022417,7]
[364549776,1749137447345,-525.64,0.00022465,2]
[364549777,1749137447354,-1235.06,0.00022465,2]
[364549778,1749137447364,-734.11,0.00022465,2]
[364549779,1749137447374,-525.88,0.00022465,2]
[364549780,1749137447383,-4439.96850456,0.00022465,2]
[364549781,1749137447459,-300.0,0.00022465,2]
[364549782,1749137447472,-22132.54149544,0.00022465,2]
[364549783,1749137447482,-472.16,0.00022465,2]
[364549784,1749137447492,-272.27170811,0.00022465,2]
[364549785,1749137447502,-969.37,0.000225,7]
[364549786,1749137447512,-302.4543907,0.00022624,7]
[364549787,1749137447522,-1577.36,0.00022663,2]
[364549788,1749137447531,-500.0,0.0002268,2]
[364549789,1749137447541,-525.64,0.00022739,2]
[364549790,1749137447550,-1235.06,0.00022739,2]
[364549791,1749137447561,-734.11,0.00022739,2]
[364549792,1749137447571,-525.88,0.00022739,2]
[364549793,1749137447582,-26872.51,0.00022739,2]
[364549794,1749137447591,-472.16,0.00022739,2]
[364549795,1749137447601,-709.0,0.00022792,2]
[364549796,1749137447610,-2225.0,0.00022792,2]
[364549797,1749137447620,-405.0,0.00022792,2]
[364549798,1749137447629,-1006.2,0.000228,7]
[364549799,1749137447638,-302.4543907,0.00022831,8]
[364549800,1749137447647,-215.0738,0.00022947,2]
[364549801,1749137447657,-525.64,0.00023013,2]
[364549802,1749137447666,-703.30835755,0.00023013,2]
[364549803,1749137447767,-430.0,0.00018356,2]
[364549804,1749137447777,-135.0,0.00018356,2]
[364549805,1749137447835,-305.0,0.00018356,2]
[364549806,1749137447844,-430.0,0.00018356,2]
[364549807,1749137447854,-962.0,0.00022228,2]
[364549808,1749137447864,-531.75164245,0.00023013,2]
[364549809,1749137447873,-734.11,0.00023013,2]
[364549810,1749137447883,-525.88,0.00023013,2]
[364549811,1749137447893,-26872.51,0.00023013,2]
[364549812,1749137447902,-472.16,0.00023013,2]
[364549813,1749137447912,-302.4543907,0.00023038,8]
[364549814,1749137447921,-4172.94716119,0.00023099,2]
[364549815,1749137447932,-1443.0,0.00023099,2]
[364549816,1749137448043,-1419.81231565,0.00023099,2]
[364549818,1749137885870,164.941543,0.00013699,2]
[364549875,1749138632678,-325.99,0.00017241,2]
[364549877,1749138632688,-7.34273335,0.00018345,2]
[364549897,1749138632883,-809.77192445,0.00018345,2]
[364549961,1749138639784,-15182.8853422,0.00018345,2]
[364549962,1749138639794,-7790.515038,0.00018345,2]
[364549963,1749138639804,-1901.0374758,0.00018356,2]
[364549964,1749138639814,-500.0,0.00018356,2]
[364549965,1749138639823,-440.0,0.00018356,2]
[364549966,1749138639833,-430.0,0.00018356,2]
[364549967,1749138639842,-430.0,0.00018356,2]
[364549968,1749138639852,-430.0,0.00018356,2]
[364549969,1749138639862,-430.0,0.00018356,2]
[364549970,1749138639871,-420.0,0.00018356,2]
[364549971,1749138639881,-220.0,0.00018356,2]
[364549972,1749138639890,-430.0,0.00018356,2]
[364549973,1749138639900,-440.0,0.00018356,2]
[364549974,1749138639909,-440.0,0.00018356,2]
[364549975,1749138639919,-249.47680584,0.00018356,2]
[364549976,1749138639928,-440.0,0.00018356,2]
[364549977,1749138639938,-561.79572853,0.00018356,2]
[364549978,1749138639947,-495.98344321,0.00018356,2]
[364549979,1749138639957,-574.1,0.00018356,2]
[364549980,1749138639967,-430.0,0.00018356,2]
[364549981,1749138639976,-440.0,0.00018356,2]
[364549982,1749138639986,-440.0,0.00018356,2]
[364549983,1749138639996,-440.0,0.00018356,2]
[364549984,1749138640005,-410.0,0.00018356,2]
[364549985,1749138640015,-410.0,0.00018356,2]
[364549986,1749138640024,-440.0,0.00018356,2]
[364549987,1749138640034,-440.0,0.00018356,2]
[364549988,1749138640043,-423.70980898,0.00018356,2]
[364549989,1749138640053,-440.0,0.00018356,2]
[364549990,1749138640063,-440.0,0.00018356,2]
[364549991,1749138640073,-440.0,0.00018356,2]
[364549992,1749138640082,-440.0,0.00018356,2]
[364549993,1749138640093,-430.0,0.00018356,2]
[364549994,1749138640102,-430.0,0.00018356,2]
[364549995,1749138640111,-430.0,0.00018356,2]
[364549996,1749138640121,-440.0,0.00018356,2]
[364549997,1749138640131,-440.0,0.00018356,2]
[364549998,1749138640141,-440.0,0.00018356,2]
[364549999,1749138640151,-440.0,0.00018356,2]
[364550000,1749138640160,-277.29118866,0.00018356,2]
[364550001,1749138640170,-440.0,0.00018356,2]
[364550002,1749138640180,-434.14942137,0.00018356,2]
[364550003,1749138640189,-440.0,0.00018356,2]
[364550004,1749138640199,-440.0,0.00018356,2]
[364550005,1749138640208,-430.0,0.00018356,2]
[364550006,1749138640217,-440.0,0.00018356,2]
[364550008,1749138640227,-440.0,0.00018356,2]
[364550009,1749138640236,-440.0,0.00018356,2]
[364550010,1749138640246,-430.0,0.00018356,2]
[364550011,1749138640255,-440.0,0.00018356,2]
[364550012,1749138640265,-500.0,0.00018356,2]
[364550013,1749138640274,-501.1582838,0.00018356,2]
[364550014,1749138640283,-430.0,0.00018356,2]
[364550015,1749138640294,-440.0,0.00018356,2]
[364550016,1749138640303,-430.0,0.00018356,2]
[364550017,1749138640313,-420.0,0.00018356,2]
[364550018,1749138640322,-440.0,0.00018356,2]
[364550019,1749138640332,-400.0,0.00018356,2]
[364550020,1749138640341,-969.17,0.00018356,2]
[364550021,1749138640350,-440.0,0.00018356,2]
[364550022,1749138640360,-440.0,0.00018356,2]
[364550023,1749138640369,-440.0,0.00018356,2]
[364550025,1749138640379,-430.7358873,0.00018356,2]
[364550027,1749138640389,-440.0,0.00018356,2]
[364550028,1749138640399,-440.0,0.00018356,2]
[364550029,1749138640409,-440.0,0.00018356,2]
[364550030,1749138640421,-440.0,0.00018356,2]
[364550031,1749138640430,-212.98400657,0.00018356,2]
[364550032,1749138640440,-430.0,0.00018356,2]
[364550033,1749138640449,-430.0,0.00018356,2]
[364550034,1749138640459,-440.0,0.00018356,2]
[364550035,1749138640468,-440.0,0.00018356,2]
[364550036,1749138640478,-430.0,0.00018356,2]
[364550037,1749138640487,-440.0,0.00018356,2]
[364550038,1749138640498,-440.0,0.00018356,2]
[364550039,1749138640510,-440.0,0.00018356,2]
[364550040,1749138640519,-440.0,0.00018356,2]
[364550041,1749138640529,-562.0471868,0.00018356,2]
[364550042,1749138640539,-613.16,0.00018356,2]
[364550043,1749138640549,-440.0,0.00018356,2]
[364550044,1749138640560,-440.0,0.00018356,2]
[364550045,1749138640570,-440.0,0.00018356,2]
[364550046,1749138640582,-440.0,0.00018356,2]
[364550047,1749138640592,-430.0,0.00018356,2]
[364550048,1749138640603,-440.0,0.00018356,2]
[364550049,1749138640614,-430.0,0.00018356,2]
[364550050,1749138640624,-440.0,0.00018356,2]
[364550051,1749138640634,-440.0,0.00018356,2]
[364550052,1749138640644,-440.0,0.00018356,2]
[364550053,1749138640654,-440.0,0.00018356,2]
[364550054,1749138640663,-924.01,0.00018356,2]
[364550055,1749138640672,-430.0,0.00018356,2]
[364550056,1749138640682,-440.0,0.00018356,2]
[364550057,1749138640692,-440.0,0.00018356,2]
[364550058,1749138640703,-559.37252558,0.00018356,2]
[364550059,1749138640713,-1379.01,0.00018356,2]
[364550060,1749138640725,-440.0,0.00018356,2]
[364550061,1749138640735,-440.0,0.00018356,2]
[364550062,1749138640747,-440.0,0.00018356,2]
[364550063,1749138640755,-440.0,0.00018356,2]
[364550064,1749138640766,-440.0,0.00018356,2]
[364550065,1749138640775,-559.0,0.00018356,2]
[364550066,1749138640784,-430.0,0.00018356,2]
[364550067,1749138640794,-440.0,0.00018356,2]
[364550068,1749138640803,-440.0,0.00018356,2]
[364550069,1749138640813,-440.0,0.00018356,2]
[364550071,1749138640823,-430.0,0.00018356,2]
[364550073,1749138640833,-440.0,0.00018356,2]
[364550075,1749138640842,-440.0,0.00018356,2]
[364550077,1749138640851,-440.0,0.00018356,2]
[364550078,1749138640860,-432.79574424,0.00018356,2]
[364550081,1749138640870,-440.0,0.00018356,2]
[364550082,1749138640879,-440.0,0.00018356,2]
[364550085,1749138640889,-440.0,0.00018356,2]
[364550087,1749138640898,-440.0,0.00018356,2]
[364550088,1749138640907,-440.0,0.00018356,2]
[364550090,1749138640916,-440.0,0.00018356,2]
[364550093,1749138640925,-440.0,0.00018356,2]
[364550094,1749138640935,-440.0,0.00018356,2]
[364550096,1749138640944,-440.0,0.00018356,2]
[364550098,1749138640953,-414.99731037,0.00018356,2]
[364550100,1749138640963,-475.51500222,0.00018356,2]
[364550102,1749138640972,-440.0,0.00018356,2]
[364550104,1749138640981,-465.40800187,0.00018356,2]
[364550106,1749138640990,-431.80495415,0.00018356,2]
[364550108,1749138641000,-440.0,0.00018356,2]
[364550110,1749138641009,-430.0,0.00018356,2]
[364550112,1749138641018,-440.0,0.00018356,2]
[364550114,1749138641028,-410.0,0.00018356,2]
[364550116,1749138641037,-440.0,0.00018356,2]
[364550118,1749138641047,-440.0,0.00018356,2]
[364550121,1749138641056,-375.87908355,0.00018356,2]
[364550122,1749138641066,-428.81033719,0.00018356,2]
[364550125,1749138641076,-430.0,0.00018356,2]
[364550126,1749138641085,-400.0,0.00018356,2]
[364550128,1749138641095,-517.68599041,0.00018356,2]
[364550131,1749138641105,-430.0,0.00018356,2]
[364550132,1749138641114,-440.0,0.00018356,2]
[364550134,1749138641124,-552.774134,0.00018356,2]
[364550136,1749138641133,-430.0,0.00018356,2]
[364550139,1749138641144,-440.0,0.00018356,2]
[364550141,1749138641153,-440.0,0.00018356,2]
[364550143,1749138641163,-430.0,0.00018356,2]
[364550144,1749138641172,-430.0,0.00018356,2]
[364550146,1749138641182,-440.0,0.00018356,2]
[364550148,1749138641191,-430.0,0.00018356,2]
[364550150,1749138641201,-440.0,0.00018356,2]
[364550153,1749138641213,-400.0,0.00018356,2]
[364550155,1749138641224,-170.59918432,0.00018356,2]
[364550156,1749138641242,-440.0,0.00018356,2]
[364550158,1749138641252,-440.0,0.00018356,2]
[364550160,1749138641263,-431.00901855,0.00018356,2]
[364550162,1749138641272,-430.0,0.00018356,2]
[364550164,1749138641282,-436.98133384,0.00018356,2]
[364550166,1749138641292,-430.0,0.00018356,2]
[364550168,1749138641301,-440.0,0.00018356,2]
[364550170,1749138641311,-432.40143575,0.00018356,2]
[364550172,1749138641320,-430.0,0.00018356,2]
[364550174,1749138641330,-392.34943382,0.00018356,2]
[364550177,1749138641340,-440.0,0.00018356,2]
[364550178,1749138641350,-440.0,0.00018356,2]
[364550180,1749138641359,-430.0,0.00018356,2]
[364550182,1749138641368,-440.0,0.00018356,2]
[364550184,1749138641378,-440.0,0.00018356,2]
[364550186,1749138641387,-432.57528556,0.00018356,2]
[364550188,1749138641396,-440.0,0.00018356,2]
[364550190,1749138641406,-431.91988334,0.00018356,2]